fUSD/lending_fUSD_20250521
["ID","MTS","AMOUNT","RATE_DAILY","PERIOD"]
[361856150,1747843850471,-420.0,0.00040327,30]
[361856151,1747843850481,-420.0,0.00040327,25]
[361856152,1747843850490,-420.0,0.00040327,30]
[361856153,1747843850501,-2916.89,0.00040327,30]
[361856154,1747843850511,-420.0,0.00040327,30]
[361856155,1747843850521,-420.0,0.00040327,30]
[361856156,1747843850531,-420.0,0.00040327,30]
[361856157,1747843850541,-420.0,0.00040327,30]
[361856158,1747843850551,-420.0,0.00040327,30]
[361856159,1747843850561,-420.0,0.00040327,30]
[361856160,1747843850571,-692.95,0.00040327,30]
[361856161,1747843850580,-1331.61,0.00040327,30]
[361856162,1747843850590,-549.26,0.00040327,30]
[361856163,1747843850599,-766.69,0.00040327,30]
[361856164,1747843850609,-420.0,0.00040327,30]
[361856165,1747843850620,-420.0,0.00040327,30]
[361856166,1747843850630,-420.0,0.00040327,30]
[361856167,1747843850640,-10359.95066758,0.00040327,7]
[361856169,1747844282877,200.0,0.00022126,117]
[361856170,1747844462851,-156.57,0.00013699,2]
[361856171,1747844462874,-5.81764673,0.00015,2]
[361856172,1747844535205,-217.41760271,0.00015,2]
[361856173,1747844537366,-26.76475056,0.00015,2]
[361856174,1747844708191,528832.08528017,0.00012,2]
[361856175,1747844708222,979837.79333333,0.00012,2]
[361856176,1747844709777,-210.95963416,0.00012,2]
[361856177,1747844745301,-250.0,0.00011999,2]
[361856178,1747844812131,-50.0,0.00011999,2]
[361856179,1747844812154,-126.35844403,0.00011999,2]
[361856180,1747844849118,-282.76831156,0.000115,4]
[361856181,1747844853042,-217.23168844,0.000115,4]
[361856182,1747844853070,-8.41756512,0.000116,4]
[361856183,1747844855224,-190.31111579,0.000116,4]
[361856184,1747844857432,-175.54691229,0.000116,4]
[361856185,1747844859377,-325.5242035,0.000116,4]
[361856186,1747844861380,-331.24594984,0.000116,4]
[361856187,1747844864359,-68.95425346,0.000116,4]
[361856188,1747844864393,-117.7597967,0.000117,4]
[361856189,1747844869600,-213.65002,0.000117,4]
[361856190,1747844879547,-1368.5901833,0.000117,4]
[361856191,1747844879571,-2200.0,0.000118,4]
[361856192,1747844879594,-2800.0,0.000119,4]
[361856193,1747844879617,-46074.42,0.00011997,2]
[361856194,1747844879639,-150.0,0.00011998,2]
[361856195,1747844879659,-896.54226625,0.00011998,2]
[361856196,1747844879682,-42.85344301,0.00011999,2]
[361856197,1747844879703,-256.05494511,0.00011999,2]
[361856198,1747844879730,-500.0,0.00011999,2]
[361856199,1747844879756,-500.0,0.00011999,2]
[361856200,1747844879781,-500.0,0.00011999,2]
[361856201,1747844879818,-500.0,0.00011999,2]
[361856202,1747844879847,-500.0,0.00011999,2]
[361856203,1747844879874,-500.0,0.00011999,2]
[361856204,1747844879901,-500.0,0.00011999,2]
[361856205,1747844879928,-500.0,0.00011999,2]
[361856206,1747844879955,-500.0,0.00011999,2]
[361856207,1747844880274,-500.0,0.00011999,2]
[361856208,1747844880304,-500.0,0.00011999,2]
[361856209,1747844880331,-500.0,0.00011999,2]
[361856210,1747844880358,-500.0,0.00011999,2]
[361856211,1747844880384,-500.0,0.00011999,2]
[361856212,1747844880410,-500.0,0.00011999,2]
[361856213,1747844880438,-500.0,0.00011999,2]
[361856214,1747844880467,-500.0,0.00011999,2]
[361856215,1747844880494,-500.0,0.00011999,2]
[361856216,1747844880520,-500.0,0.00011999,2]
[361856217,1747844880548,-500.0,0.00011999,2]
[361856218,1747844880574,-500.0,0.00011999,2]
[361856219,1747844880600,-519.06691138,0.00011999,2]
[361856220,1747844880626,-500.0,0.00011999,2]
[361856221,1747844880652,-500.0,0.00011999,2]
[361856222,1747844880683,-500.0,0.00011999,2]
[361856223,1747844880714,-500.0,0.00011999,2]
[361856224,1747844880740,-500.0,0.00011999,2]
[361856225,1747844880766,-500.0,0.00011999,2]
[361856226,1747844880795,-500.0,0.00011999,2]
[361856227,1747844880823,-500.0,0.00011999,2]
[361856228,1747844880851,-500.0,0.00011999,2]
[361856229,1747844880879,-500.0,0.00011999,2]
[361856230,1747844880907,-500.0,0.00011999,2]
[361856231,1747844880935,-500.0,0.00011999,2]
[361856232,1747844880961,-500.0,0.00011999,2]
[361856233,1747844880989,-500.0,0.00011999,2]
[361856234,1747844881017,-500.0,0.00011999,2]
[361856235,1747844881043,-500.0,0.00011999,2]
[361856236,1747844881069,-500.0,0.00011999,2]
[361856237,1747844881095,-500.0,0.00011999,2]
[361856238,1747844881121,-500.0,0.00011999,2]
[361856239,1747844881147,-500.0,0.00011999,2]
[361856240,1747844881170,-500.0,0.00011999,2]
[361856241,1747844881197,-500.0,0.00011999,2]
[361856242,1747844881225,-500.0,0.00011999,2]
[361856243,1747844881253,-500.0,0.00011999,2]
[361856244,1747844881285,-500.0,0.00011999,2]
[361856245,1747844881312,-500.0,0.00011999,2]
[361856246,1747844881341,-500.0,0.00011999,2]
[361856247,1747844881369,-500.0,0.00011999,2]
[361856248,1747844881397,-500.0,0.00011999,2]
[361856249,1747844881423,-500.0,0.00011999,2]
[361856250,1747844881449,-500.0,0.00011999,2]
[361856251,1747844881477,-500.0,0.00011999,2]
[361856252,1747844881504,-500.0,0.00011999,2]
[361856253,1747844881534,-500.0,0.00011999,2]
[361856254,1747844881565,-300.0,0.00011999,2]
[361856255,1747844881595,-500.0,0.00011999,2]
[361856256,1747844881621,-500.0,0.00011999,2]
[361856257,1747844881649,-500.0,0.00011999,2]
[361856258,1747844881676,-615992.47225095,0.00012,2]
[361856273,1747844948079,-300.0,0.00011899,2]
[361856274,1747844948102,-397.6641792,0.000119,2]
[361856275,1747844948124,-118.8205276,0.000119,2]
[361856276,1747844978705,-667.59941786,0.000119,2]
[361856277,1747844978728,-3069.76221254,0.000119,2]
[361856278,1747844978749,-3388.477356,0.000119,2]
[361856279,1747844978771,-169.41035224,0.000119,2]
[361856280,1747844979123,-169878.32210829,0.000119,2]
[361856281,1747844979146,-500.0,0.00011973,2]
[361856282,1747844979167,-500.0,0.00011973,2]
[361856283,1747844979191,-499.73253223,0.00011973,2]
[361856284,1747844979212,-500.520092,0.00011973,2]
[361856285,1747844979234,-507.55713397,0.00011973,2]
[361856286,1747844979255,-500.0,0.00011973,2]
[361856287,1747844979276,-500.0,0.00011973,2]
[361856288,1747844979297,-156.78234513,0.00011973,2]
[361856289,1747844979318,-500.0,0.00011973,2]
[361856290,1747844979338,-172.8612332,0.00011973,2]
[361856291,1747844979358,-500.0,0.00011973,2]
[361856292,1747844979379,-500.0,0.00011973,2]
[361856293,1747844979400,-500.0,0.00011973,2]
[361856294,1747844979420,-500.0,0.00011973,2]
[361856295,1747844979441,-500.0,0.00011973,2]
[361856296,1747844979462,-179.23846157,0.00011999,2]
[361856297,1747844979490,-500.0,0.00011999,2]
[361856298,1747844979513,-500.0,0.00011999,2]
[361856299,1747844979539,-500.0,0.00011999,2]
[361856300,1747844979562,-231.90669113,0.00011999,2]
[361856301,1747844979586,-500.0,0.00011999,2]
[361856302,1747844979609,-500.0,0.00011999,2]
[361856303,1747844979632,-500.0,0.00011999,2]
[361856304,1747844979655,-500.0,0.00011999,2]
[361856305,1747844979678,-125777.83006384,0.00012,2]
[361856306,1747845025951,-213.65002,0.0001183,2]
[361856307,1747845025974,-300.0,0.00011889,2]
[361856308,1747845025996,-1200.0,0.00011889,2]
[361856309,1747845026018,-36897.39048086,0.0001189,2]
[361856310,1747845026158,-150.0,0.00011899,2]
[361856311,1747845026180,-27529.51438332,0.000119,2]
[361856312,1747845026207,-357.83862968,0.000119,2]
[361856313,1747845026229,-500.37503577,0.00011973,2]
[361856314,1747845026254,-500.0,0.00011973,2]
[361856315,1747845026278,-500.0,0.00011973,2]
[361856316,1747845026301,-481.93367541,0.00011973,2]
[361856317,1747845026323,-500.0,0.00011973,2]
[361856318,1747845026346,-208.35728954,0.00011973,2]
[361856319,1747845026369,-197.15,0.0001199,2]
[361856320,1747845026391,-197.15,0.0001199,2]
[361856321,1747845026412,-197.15,0.0001199,2]
[361856322,1747845026434,-197.15,0.0001199,2]
[361856323,1747845026459,-197.15,0.0001199,2]
[361856324,1747845026480,-197.15,0.0001199,2]
[361856325,1747845026506,-197.15,0.0001199,2]
[361856326,1747845026529,-197.15,0.0001199,2]
[361856327,1747845026551,-197.15,0.0001199,2]
[361856328,1747845026574,-197.15,0.0001199,2]
[361856329,1747845026600,-177589.44048542,0.00012,2]
[361856333,1747845032080,-5160.0,0.00012,2]
[361856334,1747845032133,-507.17232003,0.00012,2]
[361856335,1747845032146,-637.76897716,0.00012,2]
[361856336,1747845032211,-287.7440986,0.00012,2]
[361856337,1747845032223,-8925.7048539,0.00012,2]
[361856338,1747845032234,-536.54090003,0.00012,2]
[361856339,1747845032327,-476.23,0.00012,2]
[361856340,1747845032339,-438.4853198,0.00012,2]
[361856341,1747845032352,-516.08,0.00012,2]
[361856343,1747845032364,-15017.67318748,0.00012,2]
[361856344,1747845032376,-3697.74886406,0.00012,2]
[361856363,1747845038111,-642.65055791,0.0001199,2]
[361856364,1747845038121,-642.65055791,0.0001199,2]
[361856365,1747845038131,-300.0,0.00011999,2]
[361856366,1747845038141,-119.85135815,0.00012,2]
[361856367,1747845038164,-21800.0,0.00012,2]
[361856368,1747845038176,-307623.35999998,0.00012,2]
[361856369,1747845038273,-365.2349616,0.00012,2]
[361856370,1747845038285,-323.18,0.00012,2]
[361856371,1747845038297,-384.186,0.00012,2]
[361856424,1747845038902,-276.1546537,0.00012,2]
[361856427,1747845038927,-6286.7785675,0.00012,2]
[361856568,1747845040648,-92193.32022265,0.00012,2]
[361856573,1747845040783,-248975.03367164,0.00012,2]
[361856576,1747845040796,-616.63521046,0.00012,2]
[361856577,1747845040808,-1031.397,0.00012,2]
[361856578,1747845040821,-517.53499995,0.00012,2]
[361856579,1747845040840,-1924.00018051,0.00012,2]
[361856580,1747845040853,-749.04969699,0.00012,2]
[361856581,1747845040879,-345469.78329902,0.00012,2]
[361856582,1747845041038,-0.00724838,0.00012,2]
[361856583,1747845041055,-32694.57680087,0.00012,2]
[361856584,1747845041068,-526.03656809,0.00012,2]
[361856585,1747845041094,-336.0581857,0.00012,2]
[361856586,1747845041379,-64.10087738,0.00012,2]
[361856587,1747845041396,-7755.67353989,0.00012,2]
[361856593,1747845043217,-1171.17000487,0.00012,2]
[361856594,1747845043231,-1030.6,0.00012,2]
[361856595,1747845043270,-1276.15,0.00012,2]
[361856596,1747845043283,-856.27912552,0.00012,2]
[361856597,1747845043378,-3003.94134218,0.00012,2]
[361856598,1747845043391,-10473.38092704,0.00012,2]
[361856599,1747845043484,-1291.87917819,0.00012,2]
[361856600,1747845043497,-34313.042048,0.00012,2]
[361856601,1747845043511,-11589.4295,0.00012,2]
[361856602,1747845043540,-472.04639561,0.00012,2]
[361856615,1747845046100,-282040.74571577,0.00012,2]
[361856616,1747845046113,-3779.05073902,0.00012,2]
[361856617,1747845046125,-357151.24558669,0.00012,2]
[361856618,1747845046137,-685.69802021,0.00012,2]
[361856619,1747845046149,-2893.26,0.00012,2]
[361856620,1747845046175,-439.02886751,0.00012,2]
[361856621,1747845046292,-2917.2000009,0.00012,2]
[361856622,1747845046305,-7208.4,0.00012,2]
[361856623,1747845046317,-8278.5288,0.00012,2]
[361856624,1747845046333,-24136.11175784,0.00012,2]
[361856625,1747845046349,-4161.1,0.00012,2]
[361856626,1747845046361,-9021.27764642,0.00012,2]
[361856627,1747845046385,-641.60428999,0.00012,2]
[361856628,1747845046397,-23309.9083952,0.00012,2]
[361856629,1747845046409,-1062.16394359,0.00012,2]
[361856630,1747845046422,-370790.01913282,0.00012,2]
[361856631,1747845046434,-11602.67378248,0.00012,2]
[361856632,1747845046448,-2066.63999988,0.00012,2]
[361856633,1747845046461,-12902.44985273,0.00012,2]
[361856634,1747845046477,-603.29999952,0.00012,2]
[361856635,1747845046489,-713396.03633864,0.00012,2]
[361856638,1747845067034,-300.0,0.00011899,2]
[361856639,1747845067057,-524.27996364,0.000119,2]
[361856640,1747845067080,-2258.984904,0.000119,2]
[361856641,1747845067103,-29762.49158955,0.000119,2]
[361856642,1747845067307,-116049.63937736,0.00012,2]
[361856643,1747845067331,-330474.60416545,0.00012,2]
[361856646,1747845101954,-500.0,0.00011973,2]
[361856647,1747845101977,-511.48059896,0.00011973,2]
[361856648,1747845102000,-500.0,0.00011973,2]
[361856649,1747845102351,-500.0,0.00011973,2]
[361856650,1747845102375,-500.0,0.00011973,2]
[361856651,1747845102396,-500.0,0.00011973,2]
[361856652,1747845102418,-709988.51940104,0.00012,2]
[361856656,1747845158899,150.0,0.00014,5]
[361856662,1747845185419,-362000.0,0.00012,2]
[361856663,1747845222774,-500.0,0.00011999,2]
[361856664,1747845222803,-494.73331471,0.00011999,2]
[361856665,1747845222827,-171005.26668529,0.00012,2]
[361856667,1747845290074,-158.12034299,0.000119,2]
[361856668,1747845290097,-300.0,0.00011999,2]
[361856669,1747845290119,-92041.87965701,0.00012,2]
[361856672,1747845561558,178.0,0.0002739,120]
[361856673,1747845605523,350.06153372,0.00011928,2]
[361856674,1747845643791,-4050.564974,0.00011939,2]
[361856675,1747845701903,-1000.0,0.00011999,2]
[361856676,1747845702139,-1200.0,0.00011999,2]
[361856677,1747845702170,-219.0,0.00011999,2]
[361856678,1747845722070,150.0,0.00011999,2]
[361856679,1747845733530,4828.520502,0.0001194,2]
[361856680,1747845782700,300.0,0.00011999,2]
[361856681,1747845901828,150.0,0.00011999,2]
[361856682,1747845901869,1200.0,0.00011999,2]
[361856687,1747846144699,4737.0,0.00027397,120]
[361856688,1747846150146,-3858.115548,0.00012,2]
[361856692,1747846164381,-32000.0,0.00012,2]
[361856694,1747846202023,480.0,0.00011999,2]
[361856704,1747846232550,-2338.05033358,0.00012,2]
[361856705,1747846232561,-1887.326924,0.00012,2]
[361856706,1747846232570,-253.84444121,0.00012,2]
[361856707,1747846232581,-173.91,0.00012964,2]
[361856708,1747846232591,-250.0,0.000132,2]
[361856709,1747846232602,-250.0,0.000132,2]
[361856710,1747846232612,-250.0,0.000132,2]
[361856711,1747846232621,-261.82861182,0.00013368,2]
[361856712,1747846232631,-156.57,0.00013699,2]
[361856713,1747846232641,-1194.7,0.0001428,2]
[361856714,1747846232651,-759.02217169,0.00014559,2]
[361856715,1747846232661,-500.0,0.0001468,2]
[361856716,1747846232671,-1000.0,0.00015228,2]
[361856717,1747846232681,-362.0,0.00015313,2]
[361856718,1747846232690,-707.48,0.00015684,2]
[361856719,1747846232700,-1772.52,0.00015779,2]
[361856720,1747846232710,-2222.9,0.00015802,2]
[361856721,1747846232720,-704.55,0.00015824,2]
[361856722,1747846232730,-192.05,0.00015887,2]
[361856723,1747846232742,-150.0,0.00015887,7]
[361856724,1747846232752,-150.0,0.00016043,2]
[361856725,1747846232762,-1360.89,0.00016093,2]
[361856726,1747846232772,-1300.67,0.00016124,2]
[361856727,1747846232782,-161.95,0.00016139,2]
[361856728,1747846232792,-500.0,0.00016174,2]
[361856729,1747846232802,-250.0,0.00016196,2]
[361856730,1747846232813,-7074.43892952,0.00016202,2]
[361856731,1747846232826,-730.54091556,0.00016202,2]
[361856732,1747846232929,-1097.9916,0.00016202,2]
[361856733,1747846232944,-393.283345,0.00016202,2]
[361856734,1747846232962,-405.57,0.00016202,2]
[361856735,1747846232989,-547.25853702,0.00016202,2]
[361856736,1747846233001,-586.89043811,0.00016202,2]
[361856737,1747846233132,-3730.8879068,0.00016202,2]
[361856738,1747846233148,-1305.0,0.00016202,2]
[361856739,1747846233162,-2812.1,0.00016202,2]
[361856741,1747846233175,-5216.03832799,0.00016202,2]
[361856743,1747846233186,-1128.36,0.00016206,2]
[361856745,1747846233196,-2850.85,0.00016217,2]
[361856747,1747846233206,-162.92,0.00016278,2]
[361856749,1747846233219,-1000.0,0.000163,2]
[361856751,1747846233230,-340.16328176,0.000163,2]
[361856753,1747846233243,-500.0,0.000163,2]
[361856755,1747846233254,-500.0,0.000163,2]
[361856756,1747846233266,-2247.55,0.00016342,2]
[361856757,1747846233278,-2727.73,0.00016379,2]
[361856758,1747846233288,-1194.7,0.00016544,2]
[361856759,1747846233299,-2323.71332425,0.00016673,2]
[361856760,1747846233312,-932.14276215,0.00016673,2]
[361856761,1747846233324,-321.79774838,0.00016673,2]
[361856762,1747846233337,-329.3988,0.00016673,2]
[361856763,1747846233375,-3695.83736522,0.00016673,2]
[361856764,1747846233386,-1612.40691007,0.00016748,2]
[361856765,1747846233396,-4969.98,0.00016777,2]
[361856766,1747846233406,-4969.98,0.00016781,2]
[361856767,1747846233416,-4969.98,0.00016786,2]
[361856768,1747846233427,-1304.53335216,0.00016789,5]
[361856769,1747846233437,-4969.98,0.0001679,2]
[361856770,1747846233448,-200.72932592,0.00016794,5]
[361856771,1747846233458,-4969.98,0.00016794,2]
[361856772,1747846233468,-4969.98,0.00016799,2]
[361856773,1747846233478,-4969.98,0.00016803,2]
[361856774,1747846233489,-4969.98,0.00016808,2]
[361856775,1747846233499,-4969.98,0.00016812,2]
[361856776,1747846233509,-4969.98,0.00016817,2]
[361856777,1747846233520,-4969.98,0.00016821,2]
[361856778,1747846233531,-150.0,0.00016825,2]
[361856779,1747846233541,-500.0,0.00016825,2]
[361856780,1747846233551,-4969.98,0.00016825,2]
[361856781,1747846233562,-4969.98,0.0001683,2]
[361856782,1747846233572,-4969.98,0.00016834,2]
[361856783,1747846233581,-4969.98,0.00016839,2]
[361856784,1747846233591,-4969.98,0.00016843,2]
[361856785,1747846233600,-4969.98,0.00016847,2]
[361856786,1747846233610,-500.0,0.00016848,2]
[361856787,1747846233620,-2104.1672565,0.00016852,2]
[361856788,1747846233649,-2865.8127435,0.00016852,2]
[361856789,1747846233660,-150.0,0.00016852,2]
[361856790,1747846233670,-500.0,0.00016852,2]
[361856791,1747846233681,-4969.98,0.00016856,2]
[361856792,1747846233691,-4969.98,0.00016861,2]
[361856793,1747846233701,-500.0,0.0001688,2]
[361856794,1747846233711,-500.0,0.00016907,2]
[361856795,1747846233723,-500.0,0.00016935,2]
[361856796,1747846233734,-224.0,0.00016962,2]
[361856797,1747846233746,-200.0,0.0001708,2]
[361856798,1747846233757,-162.92,0.00017092,2]
[361856799,1747846233768,-162.92,0.00017906,2]
[361856800,1747846233778,-1000.0,0.00018337,2]
[361856801,1747846233788,-506.55753132,0.0001845,2]
[361856802,1747846233799,-500.0,0.0001845,2]
[361856803,1747846233809,-500.0,0.0001845,2]
[361856804,1747846233820,-500.0,0.0001845,2]
[361856805,1747846233830,-500.0,0.0001845,2]
[361856806,1747846233840,-511.48059896,0.0001845,2]
[361856807,1747846233851,-500.0,0.0001845,2]
[361856808,1747846233860,-500.0,0.0001845,2]
[361856809,1747846233871,-500.0,0.0001845,2]
[361856810,1747846233885,-503.11082927,0.0001845,2]
[361856811,1747846233895,-500.0,0.000185,2]
[361856812,1747846233905,-4000.0,0.00018544,2]
[361856813,1747846233916,-162.92,0.0001872,2]
[361856814,1747846233926,-161.95,0.00018802,2]
[361856815,1747846233937,-863.47131695,0.00018808,2]
[361856831,1747846238277,-253.84444121,0.00016803,2]
[361856833,1747846238288,-331.22868305,0.00018808,2]
[361856836,1747846238299,-1000.0,0.00018998,2]
[361856838,1747846238309,-618.30173804,0.00018998,2]
[361856840,1747846238319,-500.0,0.00018998,2]
[361856842,1747846238328,-500.0,0.00018998,2]
[361856844,1747846238338,-1000.0,0.00018998,2]
[361856845,1747846238348,-209.24510509,0.00019,2]
[361856846,1747846238358,-209.24510509,0.00019,2]
[361856847,1747846238367,-500.0,0.00019048,2]
[361856848,1747846238379,-209.24510509,0.00019208,2]
[361856849,1747846238389,-1612.40691001,0.00019235,2]
[361856850,1747846238399,-179.38,0.00019303,2]
[361856851,1747846238409,-173.91,0.00019446,2]
[361856852,1747846238419,-507.28647287,0.00019546,2]
[361856853,1747846238428,-238.1217057,0.000199,2]
[361856854,1747846238441,-352.62211498,0.000199,2]
[361856855,1747846238450,-155.0,0.000199,2]
[361856856,1747846238460,-41736.96073487,0.0001999,2]
[361856857,1747846238470,-361.49893,0.0002,2]
[361856858,1747846238480,-361.49894,0.0002,2]
[361856859,1747846238489,-361.49893,0.0002,2]
[361856860,1747846238500,-361.49894,0.0002,2]
[361856861,1747846238510,-361.49894,0.0002,2]
[361856862,1747846238519,-361.49894,0.0002,2]
[361856863,1747846238530,-1000.0,0.00020375,2]
[361856864,1747846238540,-1194.7,0.00021072,2]
[361856865,1747846238549,-209.24510509,0.00021362,5]
[361856866,1747846238559,-1612.40691001,0.00021722,2]
[361856867,1747846238569,-170.49,0.00021945,30]
[361856868,1747846238579,-1000.0,0.00022412,2]
[361856869,1747846238589,-1128.36,0.00022688,2]
[361856870,1747846238599,-500.0,0.00023323,4]
[361856871,1747846238608,-1194.7,0.00023336,2]
[361856872,1747846238617,-209.24510509,0.00023515,9]
[361856873,1747846238627,-234.33,0.00023836,2]
[361856874,1747846238637,-179.38,0.00024129,2]
[361856875,1747846238647,-1612.40691001,0.00024209,2]
[361856877,1747846238657,-1000.0,0.0002445,2]
[361856879,1747846238667,-385.63695666,0.000247,2]
[361856881,1747846238677,-1194.7,0.000256,2]
[361856883,1747846238686,-209.24510509,0.00025669,13]
[361856884,1747846238696,-1612.40691001,0.00026696,2]
[361856886,1747846238707,-400.0,0.00027397,2]
[361856888,1747846238716,-5737.43,0.00027397,15]
[361856889,1747846238726,-200.0,0.000274,2]
[361856892,1747846238738,-56.42729615,0.00027463,2]
[361856894,1747846238762,-329.20966047,0.00027463,2]
[361856897,1747846238773,-209.24510509,0.00027823,17]
[361856899,1747846238783,-1194.7,0.00027863,2]
[361856900,1747846238792,-7607.86,0.00028203,2]
[361856902,1747846238801,-662.8170434,0.00028203,20]
[361856905,1747846238813,-4831.18865516,0.00028203,20]
[361856907,1747846238829,-2359.12070996,0.00028203,20]
[361856909,1747846238840,-486.399999,0.00028203,20]
[361856913,1747846238884,-219.59938722,0.00028203,20]
[361856914,1747846238923,-1964.46420526,0.00028203,20]
[361856915,1747846238934,-8558.18,0.00028203,2]
[361856916,1747846238944,-1065.55,0.00028203,2]
[361856917,1747846238956,-1636.18,0.00028203,2]
[361856918,1747846238966,-150.99,0.00028203,2]
[361856919,1747846238975,-999.99,0.00028203,2]
[361856920,1747846238986,-506.55852669,0.00028209,2]
[361856921,1747846238997,-1000.0,0.00028402,4]
[361856922,1747846239007,-179.38,0.00028955,120]
[361856923,1747846239017,-153.73,0.00029,2]
[361856924,1747846239027,-1612.40691001,0.00029184,2]
[361856925,1747846239037,-178.0049583,0.00029639,2]
[361856926,1747846239046,-3874.56539974,0.0002969,2]
[361856929,1747846239102,-402.32099964,0.0002969,2]
[361856931,1747846239114,-2154.47349996,0.0002969,2]
[361856933,1747846239126,-373.2110064,0.0002969,2]
[361856935,1747846239138,-329.304,0.0002969,2]
[361856938,1747846239150,-393.912,0.0002969,2]
[361856940,1747846239162,-722.135001,0.0002969,2]
[361856943,1747846239183,-517.17495246,0.0002969,2]
[361856951,1747846239253,-18099.46443989,0.0002969,2]
[361856953,1747846239263,-6576.59663415,0.00029719,2]
[361856955,1747846239273,-459.3094,0.00029728,2]
[361856957,1747846239283,-18836.39752595,0.00029729,2]
[361856959,1747846239295,-1809.86751,0.00029729,2]
[361856960,1747846239337,-55.39588712,0.00029729,2]
[361856961,1747846239350,-3822.27033081,0.00029729,2]
[361856962,1747846239362,-548.0475,0.00029729,2]
[361856972,1747846240387,-155.0,0.00020448,2]
[361856973,1747846240398,-155.0,0.00020996,2]
[361856974,1747846240407,-37.318,0.00029729,2]
[361856975,1747846240550,-0.70747077,0.00029729,2]
[361856976,1747846240816,-1196.38231195,0.00029729,2]
[361856977,1747846240826,-1069.38998744,0.00029739,2]
[361856978,1747846240838,-1395.14860924,0.00029739,2]
[361856979,1747846240849,-377.5911615,0.00029739,2]
[361856980,1747846240861,-2894.37579085,0.00029739,2]
[361856981,1747846240873,-1044.37500015,0.00029739,2]
[361856982,1747846240908,-296.82371763,0.00029739,2]
[361856983,1747846240919,-1214.98276237,0.00029739,2]
[361856984,1747846240931,-1629.89499954,0.00029739,2]
[361856985,1747846240954,-285.84463971,0.00029739,2]
[361856995,1747846243403,-271.25975744,0.00029739,2]
[361856996,1747846243456,-986.40663306,0.00029739,2]
[361856997,1747846243468,-20816.64,0.00029739,2]
[361856998,1747846243512,-17764.99859273,0.00029739,2]
[361856999,1747846243522,-13153.1932683,0.0002979,2]
[361857000,1747846243532,-6576.59663415,0.0002996,2]
[361857001,1747846243542,-6576.59663415,0.0002997,2]
[361857002,1747846243551,-209.24510509,0.00029977,22]
[361857003,1747846243561,-13153.1932683,0.0002999,2]
[361857005,1747846243571,-1000.0,0.00029996,2]
[361857006,1747846243580,-20665.65727967,0.0003,30]
[361857007,1747846243589,-373.82121088,0.00030016,15]
[361857008,1747846243599,-1194.7,0.00030127,2]
[361857009,1747846243608,-2690.97731949,0.0003013,2]
[361857010,1747846243618,-890.53191992,0.00030138,5]
[361857011,1747846243628,-385.63695662,0.00030227,2]
[361857012,1747846243637,-24790.6505812,0.00030715,2]
[361857013,1747846243649,-2075.91071787,0.00030715,2]
[361857014,1747846243659,-8900.99928213,0.00030835,2]
[361857015,1747846243671,-4252.19398617,0.00030835,2]
[361857016,1747846243680,-178.00495828,0.00031152,2]
[361857017,1747846243689,-5076.07197243,0.00031229,2]
[361857018,1747846243792,-1500.52466172,0.00031229,2]
[361857019,1747846243802,-373.82121088,0.00031268,15]
[361857020,1747846243811,-200.0,0.00031311,2]
[361857021,1747846243821,-1612.40691001,0.00031671,2]
[361857022,1747846243831,-7267.24721739,0.0003174,2]
[361857023,1747846243842,-870.7,0.0003174,2]
[361857037,1747846244133,-9242.66478637,0.0003174,2]
[361857040,1747846244146,-9485.94929531,0.0003174,2]